fUSD/lending_fUSD_20250119
["ID","MTS","AMOUNT","RATE_DAILY","PERIOD"]
[349549347,1737292235096,-605.76959962,0.00019178,2]
[349549348,1737292235106,-500.0,0.00019178,2]
[349549349,1737292235115,-500.0,0.00019178,2]
[349549350,1737292235124,-500.0,0.00019178,2]
[349549351,1737292235134,-500.0,0.00019178,2]
[349549352,1737292235143,-500.0,0.00019178,2]
[349549353,1737292235152,-500.0,0.00019178,2]
[349549354,1737292235162,-500.0,0.00019178,2]
[349549355,1737292235171,-500.0,0.00019178,2]
[349549356,1737292235180,-500.0,0.00019178,2]
[349549357,1737292235190,-500.0,0.00019178,2]
[349549358,1737292235200,-781.7,0.00019178,2]
[349549359,1737292235209,-500.0,0.00019178,2]
[349549360,1737292235219,-500.0,0.00019178,2]
[349549361,1737292235228,-500.0,0.00019178,2]
[349549362,1737292235238,-500.0,0.00019178,2]
[349549363,1737292235248,-500.0,0.00019178,2]
[349549364,1737292235257,-500.0,0.00019178,2]
[349549365,1737292235267,-500.0,0.00019178,2]
[349549366,1737292235276,-500.0,0.00019178,2]
[349549367,1737292235285,-500.0,0.00019178,2]
[349549368,1737292235294,-500.0,0.00019178,2]
[349549369,1737292235307,-515.63720853,0.00019178,2]
[349549370,1737292235316,-500.57855283,0.00019178,2]
[349549371,1737292235326,-500.0,0.00019178,2]
[349549372,1737292235335,-1479.92,0.00019178,2]
[349549373,1737292235345,-500.0,0.00019178,2]
[349549374,1737292235355,-500.0,0.00019178,2]
[349549375,1737292235365,-500.0,0.00019178,2]
[349549376,1737292235375,-500.0,0.00019178,2]
[349549377,1737292235385,-500.0,0.00019178,2]
[349549378,1737292235394,-500.0,0.00019178,2]
[349549379,1737292235404,-644.97253192,0.00019178,2]
[349549380,1737292235413,-500.0,0.00019178,2]
[349549381,1737292235423,-500.0,0.00019178,2]
[349549382,1737292235432,-500.0,0.00019178,2]
[349549383,1737292235442,-500.0,0.00019178,2]
[349549384,1737292235451,-500.0,0.00019178,2]
[349549385,1737292235460,-500.0,0.00019178,2]
[349549386,1737292235469,-500.0,0.00019178,2]
[349549387,1737292235479,-500.0,0.00019178,2]
[349549388,1737292235488,-500.0,0.00019178,2]
[349549389,1737292235498,-500.0,0.00019178,2]
[349549390,1737292235507,-476.66959967,0.00019178,2]
[349549391,1737292235516,-472.11551083,0.00019178,2]
[349549392,1737292235526,-479.75117011,0.00019178,2]
[349549393,1737292235535,-500.0,0.00019178,2]
[349549394,1737292235545,-500.0,0.00019178,2]
[349549395,1737292235558,-500.0,0.00019178,2]
[349549396,1737292235584,-505.19,0.00019178,2]
[349549397,1737292235593,-500.0,0.00019178,2]
[349549398,1737292235603,-500.0,0.00019178,2]
[349549399,1737292235613,-500.0,0.00019178,2]
[349549400,1737292235622,-500.0,0.00019178,2]
[349549401,1737292235631,-500.0,0.00019178,2]
[349549402,1737292235641,-500.0,0.00019178,2]
[349549403,1737292235651,-500.0,0.00019178,2]
[349549404,1737292235660,-500.0,0.00019178,2]
[349549405,1737292235669,-500.0,0.00019178,2]
[349549406,1737292235678,-500.0,0.00019178,2]
[349549407,1737292235688,-500.0,0.00019178,2]
[349549408,1737292235697,-500.0,0.00019178,2]
[349549409,1737292235707,-702.65,0.00019178,2]
[349549410,1737292235718,-500.0,0.00019178,2]
[349549411,1737292235729,-500.0,0.00019178,2]
[349549412,1737292235738,-518.59540817,0.00019178,2]
[349549413,1737292235748,-500.0,0.00019178,2]
[349549414,1737292235758,-500.0,0.00019178,2]
[349549415,1737292235768,-500.0,0.00019178,2]
[349549416,1737292235778,-500.0,0.00019178,2]
[349549417,1737292235787,-500.0,0.00019178,2]
[349549418,1737292235798,-500.0,0.00019178,2]
[349549419,1737292235811,-500.0,0.00019178,2]
[349549420,1737292235820,-500.0,0.00019178,2]
[349549421,1737292235830,-500.0,0.00019178,2]
[349549422,1737292235839,-576.19436144,0.00019178,2]
[349549423,1737292235848,-500.0,0.00019178,2]
[349549424,1737292235858,-500.0,0.00019178,2]
[349549425,1737292235867,-500.0,0.00019178,2]
[349549426,1737292235877,-500.0,0.00019178,2]
[349549427,1737292235887,-500.0,0.00019178,2]
[349549428,1737292235896,-500.0,0.00019178,2]
[349549429,1737292235906,-500.0,0.00019178,2]
[349549430,1737292235915,-463.44853139,0.00019178,2]
[349549431,1737292235926,-500.0,0.00019178,2]
[349549432,1737292235935,-500.0,0.00019178,2]
[349549433,1737292235945,-500.0,0.00019178,2]
[349549434,1737292235955,-500.0,0.00019178,2]
[349549435,1737292235964,-500.0,0.00019178,2]
[349549436,1737292235974,-500.0,0.00019178,2]
[349549437,1737292235984,-500.0,0.00019178,2]
[349549438,1737292235994,-500.0,0.00019178,2]
[349549439,1737292236005,-500.0,0.00019178,2]
[349549440,1737292236015,-500.0,0.00019178,2]
[349549441,1737292236025,-500.0,0.00019178,2]
[349549442,1737292236035,-500.0,0.00019178,2]
[349549443,1737292236045,-500.0,0.00019178,2]
[349549444,1737292236057,-500.0,0.00019178,2]
[349549445,1737292236067,-500.0,0.00019178,2]
[349549446,1737292236077,-586.1,0.00019178,2]
[349549447,1737292236087,-500.0,0.00019178,2]
[349549448,1737292236097,-500.0,0.00019178,2]
[349549449,1737292236107,-500.0,0.00019178,2]
[349549450,1737292236117,-500.0,0.00019178,2]
[349549451,1737292236126,-500.0,0.00019178,2]
[349549452,1737292236136,-498.88196179,0.00019178,2]
[349549453,1737292236146,-500.0,0.00019178,2]
[349549454,1737292236155,-500.0,0.00019178,2]
[349549455,1737292236165,-500.0,0.00019178,2]
[349549456,1737292236175,-500.0,0.00019178,2]
[349549457,1737292236185,-500.0,0.00019178,2]
[349549458,1737292236195,-200.0,0.00019178,2]
[349549459,1737292236204,-500.0,0.00019178,2]
[349549460,1737292236214,-500.0,0.00019178,2]
[349549461,1737292236224,-500.0,0.00019178,2]
[349549462,1737292236234,-500.0,0.00019178,2]
[349549463,1737292236243,-500.0,0.00019178,2]
[349549464,1737292236253,-500.0,0.00019178,2]
[349549465,1737292236263,-500.0,0.00019178,2]
[349549466,1737292236273,-500.0,0.00019178,2]
[349549467,1737292236283,-525.04,0.00019178,2]
[349549468,1737292236293,-500.0,0.00019178,2]
[349549469,1737292236305,-500.0,0.00019178,2]
[349549470,1737292236315,-500.0,0.00019178,2]
[349549471,1737292236325,-500.0,0.00019178,2]
[349549472,1737292236335,-500.0,0.00019178,2]
[349549473,1737292236346,-500.0,0.00019178,2]
[349549474,1737292236356,-500.0,0.00019178,2]
[349549475,1737292236366,-554.55860215,0.00019178,2]
[349549476,1737292236376,-504.02598831,0.00019178,2]
[349549477,1737292236385,-500.0,0.00019178,2]
[349549478,1737292236396,-500.0,0.00019178,2]
[349549479,1737292236406,-500.0,0.00019178,2]
[349549480,1737292236416,-503.40159641,0.00019178,2]
[349549481,1737292236425,-500.0,0.00019178,2]
[349549482,1737292236435,-500.0,0.00019178,2]
[349549483,1737292236445,-500.0,0.00019178,2]
[349549484,1737292236454,-636.63069971,0.00019178,2]
[349549485,1737292236464,-502.25519525,0.00019178,2]
[349549486,1737292236474,-504.00312126,0.00019178,2]
[349549487,1737292236483,-512.56859004,0.00019178,2]
[349549488,1737292236493,-500.0,0.00019178,2]
[349549489,1737292236503,-500.0,0.00019178,2]
[349549490,1737292236513,-500.0,0.00019178,2]
[349549491,1737292236523,-688.38,0.00019178,2]
[349549492,1737292236532,-500.0,0.00019178,2]
[349549493,1737292236542,-500.0,0.00019178,2]
[349549494,1737292236554,-581.31,0.00019178,2]
[349549495,1737292236564,-503.25574537,0.00019178,2]
[349549496,1737292236574,-500.0,0.00019178,2]
[349549497,1737292236584,-500.0,0.00019178,2]
[349549498,1737292236595,-502.09112615,0.00019178,2]
[349549499,1737292236605,-500.0,0.00019178,2]
[349549500,1737292236615,-501.36894374,0.00019178,2]
[349549501,1737292236625,-500.0,0.00019178,2]
[349549502,1737292236634,-500.0,0.00019178,2]
[349549503,1737292236644,-500.0,0.00019178,2]
[349549504,1737292236654,-500.0,0.00019178,2]
[349549505,1737292236663,-500.0,0.00019178,2]
[349549506,1737292236672,-500.0,0.00019178,2]
[349549507,1737292236682,-500.0,0.00019178,2]
[349549508,1737292236692,-500.0,0.00019178,2]
[349549509,1737292236701,-500.0,0.00019178,2]
[349549510,1737292236711,-500.0,0.00019178,2]
[349549511,1737292236722,-505.88303691,0.00019178,2]
[349549512,1737292236733,-500.0,0.00019178,2]
[349549513,1737292236743,-500.0,0.00019178,2]
[349549514,1737292236753,-500.0,0.00019178,2]
[349549515,1737292236765,-500.0,0.00019178,2]
[349549516,1737292236776,-500.0,0.00019178,2]
[349549517,1737292236786,-544.252216,0.00019178,2]
[349549518,1737292236796,-506.77954563,0.00019178,2]
[349549519,1737292236807,-500.0,0.00019178,2]
[349549520,1737292236817,-500.0,0.00019178,2]
[349549521,1737292236827,-500.0,0.00019178,2]
[349549522,1737292236839,-500.0,0.00019178,2]
[349549523,1737292236849,-500.0,0.00019178,2]
[349549524,1737292236859,-705.18,0.00019178,2]
[349549525,1737292236871,-500.0,0.00019178,2]
[349549526,1737292236880,-500.0,0.00019178,2]
[349549527,1737292236890,-500.0,0.00019178,2]
[349549528,1737292236900,-500.0,0.00019178,2]
[349549529,1737292236910,-500.0,0.00019178,2]
[349549530,1737292236920,-500.0,0.00019178,2]
[349549531,1737292236930,-500.0,0.00019178,2]
[349549532,1737292236939,-500.0,0.00019178,2]
[349549533,1737292236949,-5086.09774706,0.00019178,2]
[349549534,1737292236959,-500.0,0.00019178,2]
[349549535,1737292236968,-605.22,0.00019178,2]
[349549536,1737292236978,-500.0,0.00019178,2]
[349549537,1737292236987,-500.0,0.00019178,2]
[349549538,1737292236997,-500.0,0.00019178,2]
[349549539,1737292237007,-500.0,0.00019178,2]
[349549540,1737292237017,-500.0,0.00019178,2]
[349549541,1737292237027,-900.64,0.00019178,2]
[349549542,1737292237036,-540.6,0.00019178,2]
[349549543,1737292237046,-631.32,0.00019178,2]
[349549544,1737292237057,-500.0,0.00019178,2]
[349549545,1737292237067,-714.49,0.00019178,2]
[349549546,1737292237076,-500.0,0.00019178,2]
[349549547,1737292237086,-500.0,0.00019178,2]
[349549548,1737292237096,-500.0,0.00019178,2]
[349549549,1737292237105,-500.0,0.00019178,2]
[349549550,1737292237115,-500.0,0.00019178,2]
[349549551,1737292237128,-500.0,0.00019178,2]
[349549552,1737292237138,-500.0,0.00019178,2]
[349549553,1737292237147,-501.45246861,0.00019178,2]
[349549554,1737292237157,-500.0,0.00019178,2]
[349549555,1737292237166,-500.0,0.00019178,2]
[349549556,1737292237176,-500.0,0.00019178,2]
[349549557,1737292237185,-500.0,0.00019178,2]
[349549558,1737292237195,-500.0,0.00019178,2]
[349549559,1737292237205,-500.0,0.00019178,2]
[349549560,1737292237214,-500.0,0.00019178,2]
[349549561,1737292237224,-500.0,0.00019178,2]
[349549562,1737292237233,-500.0,0.00019178,2]
[349549563,1737292237243,-500.0,0.00019178,2]
[349549564,1737292237253,-503.31,0.00019178,2]
[349549565,1737292237263,-500.0,0.00019178,2]
[349549566,1737292237273,-500.0,0.00019178,2]
[349549567,1737292237282,-500.0,0.00019178,2]
[349549568,1737292237292,-621.39623252,0.00019178,2]
[349549569,1737292237303,-500.0,0.00019178,2]
[349549570,1737292237318,-500.0,0.00019178,2]
[349549571,1737292237333,-570.96585938,0.00019178,2]
[349549572,1737292237344,-504.19935443,0.00019178,2]
[349549573,1737292237354,-500.0,0.00019178,2]
[349549574,1737292237363,-500.0,0.00019178,2]
[349549575,1737292237373,-989.64,0.00019178,2]
[349549576,1737292237383,-928.09,0.00019178,2]
[349549577,1737292237392,-500.0,0.00019178,2]
[349549578,1737292237402,-500.0,0.00019178,2]
[349549579,1737292237413,-500.0,0.00019178,2]
[349549580,1737292237422,-500.0,0.00019178,2]
[349549581,1737292237432,-401.08263451,0.00019178,2]
[349549582,1737292237442,-500.0,0.00019178,2]
[349549583,1737292237452,-156.08104188,0.00019178,2]
[349549584,1737292237461,-565.7,0.00019178,2]
[349549585,1737292237471,-500.0,0.00019178,2]
[349549586,1737292237481,-500.0,0.00019178,2]
[349549587,1737292237491,-508.17684468,0.00019178,2]
[349549588,1737292237500,-500.0,0.00019178,2]
[349549589,1737292237510,-608.22,0.00019178,2]
[349549590,1737292237520,-500.0,0.00019178,2]
[349549591,1737292237530,-500.0,0.00019178,2]
[349549593,1737292237764,-502.40475636,0.00019178,2]
[349549594,1737292237774,-500.0,0.00019178,2]
[349549596,1737292237783,-500.0,0.00019178,2]
[349549597,1737292237793,-501.84265085,0.00019178,2]
[349549598,1737292237804,-500.0,0.00019178,2]
[349549599,1737292237814,-500.0,0.00019178,2]
[349549600,1737292237823,-500.0,0.00019178,2]
[349549601,1737292237833,-500.0,0.00019178,2]
[349549602,1737292237843,-503.66498929,0.00019178,2]
[349549603,1737292237852,-501.76,0.00019178,2]
[349549604,1737292237862,-501.0252248,0.00019178,2]
[349549605,1737292237871,-500.0,0.00019178,2]
[349549607,1737292237880,-500.0,0.00019178,2]
[349549609,1737292237889,-500.0,0.00019178,2]
[349549611,1737292237898,-504.29476762,0.00019178,2]
[349549613,1737292237907,-500.0,0.00019178,2]
[349549614,1737292237917,-500.0,0.00019178,2]
[349549615,1737292237926,-500.0,0.00019178,2]
[349549616,1737292237936,-500.0,0.00019178,2]
[349549617,1737292237945,-500.0,0.00019178,2]
[349549618,1737292237954,-521.28214997,0.00019178,2]
[349549619,1737292237964,-500.0,0.00019178,2]
[349549620,1737292237973,-500.38418972,0.00019178,2]
[349549621,1737292237983,-500.0,0.00019178,2]
[349549622,1737292237992,-500.86530251,0.00019178,2]
[349549623,1737292238002,-1095.08,0.00019178,2]
[349549624,1737292238011,-500.0,0.00019178,2]
[349549625,1737292238021,-500.0,0.00019178,2]
[349549626,1737292238031,-500.0,0.00019178,2]
[349549627,1737292238041,-502.47660502,0.00019178,2]
[349549628,1737292238050,-500.0,0.00019178,2]
[349549629,1737292238064,-500.0,0.00019178,2]
[349549630,1737292238073,-500.0,0.00019178,2]
[349549631,1737292238083,-498.95403899,0.00019178,2]
[349549632,1737292238093,-504.77737734,0.00019178,2]
[349549633,1737292238103,-500.0,0.00019178,2]
[349549634,1737292238112,-524.26,0.00019178,2]
[349549635,1737292238122,-616.56718034,0.00019178,2]
[349549636,1737292238131,-500.0,0.00019178,2]
[349549637,1737292238140,-946.44,0.00019178,2]
[349549638,1737292238150,-500.0,0.00019178,2]
[349549639,1737292238159,-500.0,0.00019178,2]
[349549640,1737292238168,-500.0,0.00019178,2]
[349549641,1737292238177,-559.09,0.00019178,2]
[349549642,1737292238186,-689.91,0.00019178,2]
[349549643,1737292238195,-500.0,0.00019178,2]
[349549644,1737292238204,-503.14143273,0.00019178,2]
[349549645,1737292238213,-500.0,0.00019178,2]
[349549646,1737292238223,-501.78552032,0.00019178,2]
[349549647,1737292238232,-500.0,0.00019178,2]
[349549648,1737292238242,-500.0,0.00019178,2]
[349549649,1737292238251,-1903.61,0.00019178,2]
[349549650,1737292238261,-500.0,0.00019178,2]
[349549651,1737292238270,-500.0,0.00019178,2]
[349549652,1737292238279,-715.56,0.00019178,2]
[349549653,1737292238289,-548.8,0.00019178,2]
[349549654,1737292238298,-500.0,0.00019178,2]
[349549655,1737292238310,-804.68,0.00019178,2]
[349549656,1737292238320,-500.0,0.00019178,2]
[349549657,1737292238329,-682.83,0.00019178,2]
[349549658,1737292238338,-500.0,0.00019178,2]
[349549659,1737292238348,-500.0,0.00019178,2]
[349549660,1737292238358,-500.0,0.00019178,2]
[349549661,1737292238367,-500.0,0.00019178,2]
[349549662,1737292238377,-500.0,0.00019178,2]
[349549663,1737292238386,-1504.76,0.00019178,2]
[349549664,1737292238396,-1070.98,0.00019178,2]
[349549665,1737292238406,-449.09230435,0.00019178,2]
[349549666,1737292238416,-1894.47,0.00019178,2]
[349549667,1737292238425,-500.0,0.00019178,2]
[349549668,1737292238436,-500.0,0.00019178,2]
[349549669,1737292238446,-540.8,0.00019178,2]
[349549670,1737292238456,-314.21108855,0.00019178,2]
[349549671,1737292238466,-500.0,0.00019178,2]
[349549672,1737292238475,-507.99216678,0.00019178,2]
[349549673,1737292238484,-657.78,0.00019178,2]
[349549674,1737292238494,-1651.79,0.00019178,2]
[349549675,1737292238504,-4965.38,0.00019178,2]
[349549676,1737292238514,-572.04,0.00019178,2]
[349549677,1737292238524,-500.0,0.00019178,2]
[349549678,1737292238534,-500.0,0.00019178,2]
[349549679,1737292238543,-500.0,0.00019178,2]
[349549680,1737292238553,-873.98,0.00019178,2]
[349549681,1737292238564,-1007.23,0.00019178,2]
[349549682,1737292238573,-500.0,0.00019178,2]
[349549683,1737292238584,-500.0,0.00019178,2]
[349549684,1737292238593,-500.0,0.00019178,2]
[349549685,1737292238603,-500.0,0.00019178,2]
[349549686,1737292238612,-3347.66,0.00019178,2]
[349549687,1737292238622,-500.0,0.00019178,2]
[349549688,1737292238633,-500.0,0.00019178,2]
[349549689,1737292238643,-872.81,0.00019178,2]
[349549690,1737292238653,-684.55,0.00019178,2]
[349549691,1737292238662,-1325.84,0.00019178,2]
[349549692,1737292238672,-500.0,0.00019178,2]
[349549693,1737292238681,-504.27932539,0.00019178,2]
[349549694,1737292238691,-5040.77,0.00019178,2]
[349549695,1737292238702,-500.0,0.00019178,2]
[349549696,1737292238713,-500.0,0.00019178,2]
[349549697,1737292238724,-500.0,0.00019178,2]
[349549698,1737292238734,-536.4,0.00019178,2]
[349549699,1737292238743,-1617.26,0.00019178,2]
[349549700,1737292238752,-500.0,0.00019178,2]
[349549701,1737292238762,-500.0,0.00019178,2]
[349549702,1737292238772,-792.78,0.00019178,2]
[349549703,1737292238781,-904.94,0.00019178,2]
[349549704,1737292238790,-500.0,0.00019178,2]
[349549705,1737292238800,-500.0,0.00019178,2]
[349549706,1737292238810,-500.0,0.00019178,2]
[349549707,1737292238820,-1822.43,0.00019178,2]
[349549708,1737292238830,-500.0,0.00019178,2]
[349549709,1737292238840,-500.0,0.00019178,2]
[349549710,1737292238849,-500.0,0.00019178,2]
[349549711,1737292238859,-500.0,0.00019178,2]
[349549712,1737292238868,-500.0,0.00019178,2]
[349549713,1737292238878,-500.0,0.00019178,2]
[349549714,1737292238888,-699.95,0.00019178,2]
[349549715,1737292238897,-500.0,0.00019178,2]
[349549716,1737292238906,-500.0,0.00019178,2]
[349549717,1737292238915,-500.0,0.00019178,2]
[349549718,1737292238924,-500.0,0.00019178,2]
[349549719,1737292238933,-3210.43,0.00019178,2]
[349549720,1737292238943,-500.0,0.00019178,2]
[349549721,1737292238952,-500.0,0.00019178,2]
[349549722,1737292238961,-1462.05,0.00019178,2]
[349549723,1737292238970,-500.0,0.00019178,2]
[349549724,1737292238980,-540.89,0.00019178,2]
[349549725,1737292238989,-500.0,0.00019178,2]
[349549726,1737292238999,-500.0,0.00019178,2]
[349549727,1737292239009,-500.0,0.00019178,2]
[349549728,1737292239018,-502.93,0.00019178,2]
[349549729,1737292239028,-644.72,0.00019178,2]
[349549730,1737292239037,-1590.53,0.00019178,2]
[349549731,1737292239046,-520.83,0.00019178,2]
[349549732,1737292239058,-500.0,0.00019178,2]
[349549733,1737292239067,-500.0,0.00019178,2]
[349549735,1737292239078,-500.0,0.00019178,2]
[349549737,1737292239087,-500.0,0.00019178,2]
[349549739,1737292239097,-500.0,0.00019178,2]
[349549741,1737292239107,-500.0,0.00019178,2]
[349549743,1737292239117,-500.0,0.00019178,2]
[349549745,1737292239127,-695.52,0.00019178,2]
[349549747,1737292239136,-500.0,0.00019178,2]
[349549749,1737292239146,-500.0,0.00019178,2]
[349549751,1737292239156,-16.50722329,0.00019178,2]
[349549754,1737292239480,-934.90277671,0.00019178,2]
[349549755,1737292239490,-500.0,0.00019178,2]
[349549756,1737292239500,-735.48,0.00019178,2]
[349549757,1737292239510,-500.0,0.00019178,2]
[349549758,1737292239520,-500.0,0.00019178,2]
[349549759,1737292239529,-500.0,0.00019178,2]
[349549760,1737292239540,-500.0,0.00019178,2]
[349549761,1737292239549,-501.04204529,0.00019178,2]
[349549762,1737292239563,-500.0,0.00019178,2]
[349549763,1737292239573,-500.0,0.00019178,2]
[349549764,1737292239582,-702.45,0.00019178,2]
[349549765,1737292239592,-500.0,0.00019178,2]
[349549766,1737292239602,-500.0,0.00019178,2]
[349549767,1737292239613,-500.0,0.00019178,2]
[349549768,1737292239623,-577.59166309,0.00019178,2]
[349549769,1737292239633,-500.0,0.00019178,2]
[349549770,1737292239643,-2463.65,0.00019178,2]
[349549771,1737292239653,-500.0,0.00019178,2]
[349549772,1737292239663,-500.0,0.00019178,2]
[349549773,1737292239673,-531.64732288,0.00019178,2]
[349549774,1737292239683,-1434.63,0.00019178,2]
[349549775,1737292239693,-500.0,0.00019178,2]
[349549776,1737292239703,-500.0,0.00019178,2]
[349549777,1737292239713,-500.0,0.00019178,2]
[349549778,1737292239726,-500.0,0.00019178,2]
[349549779,1737292239736,-500.0,0.00019178,2]
[349549780,1737292239746,-500.0,0.00019178,2]
[349549781,1737292239758,-500.0,0.00019178,2]
[349549782,1737292239768,-500.0,0.00019178,2]
[349549783,1737292239777,-882.85,0.00019178,2]
[349549784,1737292239787,-500.0,0.00019178,2]
[349549785,1737292239798,-500.0,0.00019178,2]
[349549786,1737292239810,-1830.16,0.00019178,2]
[349549788,1737292239820,-500.0,0.00019178,2]
[349549790,1737292239830,-795.55,0.00019178,2]
[349549791,1737292239839,-500.0,0.00019178,2]
[349549792,1737292239849,-500.0,0.00019178,2]
[349549793,1737292239859,-2062.48,0.00019178,2]
[349549794,1737292239868,-500.0,0.00019178,2]
[349549796,1737292239878,-517.3,0.00019178,2]
[349549798,1737292239887,-3504.96,0.00019178,2]
[349549799,1737292239897,-500.0,0.00019178,2]
[349549800,1737292239907,-503.65553265,0.00019178,2]
[349549801,1737292239917,-500.84384395,0.00019178,2]
[349549802,1737292239927,-500.0,0.00019178,2]
[349549803,1737292239936,-500.0,0.00019178,2]
[349549804,1737292239947,-500.0,0.00019178,2]
[349549805,1737292240016,-782.55,0.00019178,2]
[349549806,1737292240029,-4164.88,0.00019178,2]
[349549807,1737292240040,-500.0,0.00019178,2]
[349549808,1737292240050,-1287.98,0.00019178,2]
[349549809,1737292240063,-500.0,0.00019178,2]
[349549810,1737292240073,-501.9574861,0.00019178,2]
[349549811,1737292240083,-608.36,0.00019178,2]
[349549812,1737292240093,-876.74,0.00019178,2]
[349549813,1737292240103,-976.69,0.00019178,2]
[349549814,1737292240113,-500.0,0.00019178,2]
[349549815,1737292240123,-500.0,0.00019178,2]
[349549816,1737292240132,-500.0,0.00019178,2]
[349549817,1737292240142,-500.0,0.00019178,2]
[349549818,1737292240152,-500.6691906,0.00019178,2]
[349549819,1737292240161,-500.0,0.00019178,2]
[349549820,1737292240170,-500.0,0.00019178,2]
[349549821,1737292240180,-3376.63,0.00019178,2]
[349549822,1737292240189,-500.0,0.00019178,2]
[349549823,1737292240199,-5837.31,0.00019178,2]
[349549824,1737292240208,-500.0,0.00019178,2]
[349549825,1737292240218,-509.75599339,0.00019178,2]
[349549826,1737292240227,-500.0,0.00019178,2]
[349549827,1737292240239,-500.0,0.00019178,2]
[349549828,1737292240256,-500.0,0.00019178,2]
[349549829,1737292240266,-500.0,0.00019178,2]
[349549830,1737292240275,-447.17605761,0.00019178,2]
[349549831,1737292240285,-1654.57,0.00019178,2]
[349549832,1737292240294,-500.0,0.00019178,2]
[349549833,1737292240304,-500.0,0.00019178,2]
[349549834,1737292240316,-500.0,0.00019178,2]
[349549835,1737292240326,-590.84,0.00019178,2]
[349549836,1737292240336,-1000.0,0.00019178,2]
[349549837,1737292240345,-5578.33,0.00019178,2]
[349549838,1737292240355,-500.0,0.00019178,2]
[349549839,1737292240365,-500.0,0.00019178,2]
[349549840,1737292240375,-500.0,0.00019178,2]
[349549841,1737292240385,-500.0,0.00019178,2]
[349549842,1737292240397,-1063.88,0.00019178,2]
[349549843,1737292240406,-837.48,0.00019178,2]
[349549844,1737292240416,-500.0,0.00019178,2]
[349549845,1737292240426,-500.0,0.00019178,2]
[349549846,1737292240435,-500.0,0.00019178,2]
[349549847,1737292240446,-500.0,0.00019178,2]
[349549848,1737292240456,-500.0,0.00019178,2]
[349549849,1737292240466,-500.0,0.00019178,2]
[349549850,1737292240476,-500.0,0.00019178,2]
[349549851,1737292240486,-5505.67,0.00019178,2]
[349549852,1737292240497,-816.79,0.00019178,2]
[349549853,1737292240506,-1142.76,0.00019178,2]
[349549855,1737292240516,-500.0,0.00019178,2]
[349549857,1737292240525,-500.0,0.00019178,2]
[349549858,1737292240535,-500.0,0.00019178,2]
[349549859,1737292240544,-587.96,0.00019178,2]
[349549860,1737292240554,-1323.26,0.00019178,2]
[349549861,1737292240565,-500.0,0.00019178,2]
[349549862,1737292240575,-500.0,0.00019178,2]
[349549863,1737292240586,-1361.89,0.00019178,2]
[349549864,1737292240596,-564.48,0.00019178,2]
[349549865,1737292240606,-7457.3,0.00019178,2]
[349549866,1737292240616,-1474.97,0.00019178,2]
[349549867,1737292240626,-508.47016232,0.00019178,2]
[349549868,1737292240636,-7941.18,0.00019178,2]
[349549869,1737292240645,-1015.14,0.00019178,2]